Cogmind - Beta 14 @@@ ROGUE MODE // 2025.03.04 @ 21:56:32 Player: Drosophila Result: Destroyed by Y-45 Defender with Beam Rifle Performance ------------- Evolutions (0) 0 Regions Visited (3) 600 Robots Destroyed (26) 130 Value Destroyed (648) 648 Prototype IDs (0) 0 Alien Tech Used (0) 0 Bonus (0) 0 TOTAL SCORE: 1378 Bonus ------- None Cogmind --------- Core Integrity 0/250 Matter 295/300 Energy 100/100 System Corruption 6% Temperature Cool (18) Movement Rolling (130) Ox2 Location -9/Recycling Parts ------- > --- POWER (1) -------- (None) > --- PROPULSION (2) --- Subdweller Monowheel Subdweller Monowheel > --- UTILITY (2) ------ Huge Storage Unit Hardened Light Armor Plating > --- WEAPON (2) ------- Subdweller Beam Cannon > --- INVENTORY (25) --- Ion Engine Subdweller Power Source Subdweller Power Source Subdweller Monowheel Subdweller Monowheel High-capacity Storage Unit Structural Scanner Subdweller Optics Subdweller Optics Signal Interpreter Terrain Scanner Terrain Scan Processor Utility Shielding Scrap Shield Subdweller Laser Subdweller Machine Gun Grenade Launcher Dirty Datajack (20) Ripper Makeshift Axe Scrap Shield Fragment (47) Scrap Shield Fragment (47) Scrap Shield Fragment (42) Scrap Shield Fragment (41) Peak State ------------ > --- POWER ------------ Light Ion Engine > --- PROPULSION ------- Subdweller Monowheel Subdweller Monowheel > --- UTILITY ---------- Huge Storage Unit Weapon Shielding > --- WEAPON ----------- Barrage Gun Battle Cannon > --- INVENTORY -------- Ion Engine Subdweller Power Source Subdweller Power Source Subdweller Monowheel High-capacity Storage Unit Structural Scanner Subdweller Optics Subdweller Optics Signal Interpreter Terrain Scanner Terrain Scan Processor Utility Shielding Weapon Shielding Scrap Shield Subdweller Laser Subdweller Machine Gun Grenade Launcher Dirty Datajack Ripper Makeshift Axe Scrap Shield Fragment Scrap Shield Fragment Scrap Shield Fragment Scrap Shield Fragment [Rating: 17] Favorites ----------- Power Light Ion Engine Engine Light Ion Engine Propulsion Subdweller Monowheel Wheel Subdweller Monowheel Utility Huge Storage Unit Storage Huge Storage Unit Protection Weapon Shielding Weapon Assault Rifle Energy Gun Medium Laser Energy Cannon Subdweller Beam Cannon Ballistic Gun Assault Rifle Ballistic Cannon Battle Cannon Launcher Grenade Launcher Slashing Weapon Makeshift Axe Build | -11 -10 -10 -9 ------- Run | Yrd Mat Sub Rec Slots Evolved . | . . . . Power . | . . . . Propulsion . | . . . . Utility . | . . . . Weapon . | . . . . Parts Attached 35 | 5 9 20 1 Power 2 | 1 . 1 . Engine 2 | 1 . 1 . Core . | . . . . Reactor . | . . . . Propulsion 7 | 2 . 5 . Treads . | . . . . Leg . | . . . . Wheel 7 | 2 . 5 . Hover . | . . . . Flight . | . . . . Utility 7 | . 3 3 1 Device . | . . . . Storage 2 | . 2 . . Processor . | . . . . Hackware . | . . . . Protection 5 | . 1 3 1 Artifact . | . . . . Weapon 19 | 2 6 11 . Energy Gun 3 | . 1 2 . Energy Cannon 1 | . . 1 . Ballistic Gun 8 | 2 2 4 . Ballistic Cannon 1 | . . 1 . Launcher 4 | . 3 1 . Special Weapon . | . . . . Impact Weapon . | . . . . Slashing Weapon 2 | . . 2 . Piercing Weapon . | . . . . Special Melee Weapon . | . . . . Unidentified Prototypes . | . . . . Corrupted Parts 1 | . . 1 . System Corruption 4 | . . 4 . Parts Lost 7 | . . 6 1 Power 2 | . . 2 . Propulsion 1 | . . 1 . Utility 1 | . . 1 . Weapon 3 | . . 2 1 Highest Loss Streak 2 | . . 2 1 To Critical Strikes . | . . . . Average Slot Usage (%) 95 | . 99 96 84 Engine 10 | . 14 10 . Wheel 27 | . 28 27 28 Storage 13 | . 13 14 14 Protection 13 | . 13 13 14 Energy Gun 4 | . 11 3 . Energy Cannon 4 | . . 4 14 Ballistic Gun 11 | . 14 13 . Ballistic Cannon 4 | . . 5 13 Peak Build Rating 17 | 5 8 17 16 Average Rating 12 | 3 7 14 15 On Entrance 7 | . 5 8 15 Naked Turns . | . . . . Heaviest Build 96 | 6 89 95 96 Greatest Support 40 | 20 20 40 40 Greatest Overweight (x) 8 | . 4 8 2 Average Overweight (x) 2 | . 3 2 2 Largest Inventory Capacity 25 | 5 25 25 25 Average Capacity 24 | 5 24 25 25 Most Carried 25 | 3 18 25 25 Average Carried 20 | 1 11 23 25 Final Capacity 25 | 5 25 25 25 Final Carried 25 | 3 15 25 25 Class Distribution -------------------- 100% | Mutant Dominant Class ---------------- Mutant | -10/Materials Mutant | -10/Subcaves Mutant | -9/Recycling Resources | -11 -10 -10 -9 ----------- Run | Yrd Mat Sub Rec Matter Collected 974 | 199 220 547 8 Remotely . | . . . . Salvage Created 783 | . 366 417 . Parts 58 | . 26 32 . Haulers Intercepted 1 | . 1 . . Recyclers Shooed . | . . . . Parts Field Recycled . | . . . . Retrieved Matter . | . . . . Parts Self-Destructed 17 | . . 17 . Prevented . | . . . . Kills | -11 -10 -10 -9 ------- Run | Yrd Mat Sub Rec Combat Hostiles Destroyed 18 | . 6 12 . Guns 9 | . 3 6 . Cannons 3 | . . 3 . AOE 6 | . 3 3 . Classes Destroyed 10 | . 7 3 . Builder 1 | . 1 . . Hauler 1 | . 1 . . Recycler 2 | . 2 . . Operator 1 | . 1 . . Turret 2 | . . 2 . Watcher 1 | . 1 . . Swarmer 6 | . 3 3 . Grunt 3 | . 3 . . Sentry 1 | . . 1 . Subdweller 8 | . . 8 . Best Kill Streak 4 | . 4 3 . Combat Bots Only 3 | . 3 3 . Max Kills in Single Turn 3 | . 2 3 . Gunslinging . | . . . . Exploded 3 | . 2 3 . Melee . | . . . . Uniques/NPCs Destroyed . | . . . . Combat | -11 -10 -10 -9 -------- Run | Yrd Mat Sub Rec Hostile Shots Fired 96 | . 11 74 11 Missed 32 | . 2 27 3 Damage Taken 1105 | . 88 903 114 Core 258 | . 64 164 30 Absorbed by Shields . | . . . . Redirected to Shielding 110 | . . 110 . Core Remaining (%) 100 | 100 . . . Volleys Fired 73 | . 27 46 . Largest 2 | . 2 2 . Hottest 119 | . 70 119 . Shots Fired 140 | . 51 89 . Gun 104 | . 48 56 . Cannon 32 | . . 32 . Launcher 4 | . 3 1 . Special . | . . . . Kinetic 82 | . 24 58 . Thermal 51 | . 24 27 . Explosive 4 | . 3 1 . Electromagnetic 3 | . . 3 . Robot Hit Streak 10 | . 10 10 . Robot Miss Streak 3 | . 3 3 . Penetration Max . | . . . . Secondary Targets . | . . . . Shots Hit Robots 90 | . 32 58 . Core Hits 41 | . 18 23 . Critical Kills . | . . . . Critical Parts Destroyed . | . . . . Critical Strikes 3 | . 2 1 . Burn 3 | . 2 1 . Melee Attacks 6 | . . 6 . Impact . | . . . . Slashing 6 | . . 6 . Piercing . | . . . . Sneak Attacks . | . . . . Combat Hostiles . | . . . . Follow-up Attacks . | . . . . Damage Inflicted 1709 | . 593 1116 . Guns 943 | . 398 545 . Cannons 439 | . . 439 . Explosions 327 | . 195 132 . Melee . | . . . . Ramming . | . . . . Kinetic 805 | . 222 583 . Thermal 533 | . 176 357 . Explosive 327 | . 195 132 . Electromagnetic 44 | . . 44 . Impact . | . . . . Slashing . | . . . . Piercing . | . . . . Highest Corruption 6 | . 2 6 6 Average Corruption 4 | . 2 5 6 Corruption Purged . | . . . . Corruption Blocked . | . . . . Effects 70 | . 12 47 11 Message Errors 21 | . 2 14 5 Matter Fused 15 | . 2 12 1 Heat Flow Errors 13 | . 4 7 2 Energy Discharges 6 | . 1 4 1 Data Loss (minor) 5 | . 1 3 1 Data Loss (major) 2 | . 1 1 . Misfires 2 | . . 2 . Alerts 3 | . 1 1 1 Weapon Failures 3 | . . 3 . Overload Shots . | . . . . Overflow Damage 52 | . 52 . . Projectiles . | . . . . Explosions 52 | . 52 . . Melee . | . . . . Knockbacks 3 | . . 3 . Impact . | . . . . Kinetic 3 | . . 3 . Secondary . | . . . . Self-Inflicted Damage . | . . . . Shots . | . . . . Rammed . | . . . . Targets Rammed . | . . . . Kicked . | . . . . Crushed . | . . . . Highest Temperature 240 | . 168 240 237 Average Temperature 59 | . 34 90 117 Received Heat Transfer 210 | . 30 144 36 Siege Activations . | . . . . Robots Corrupted . | . . . . Combat Hostiles . | . . . . Parts Fried . | . . . . Impact Corruptions . | . . . . Robots Melted . | . . . . Combat Hostiles . | . . . . Parts Melted 1 | . 1 . . Heat Transferred 1369 | . 666 703 . Parts Sabotaged . | . . . . Parts Stolen . | . . . . Parts Stripped . | . . . . Power Chain Reactions . | . . . . Alert | -11 -10 -10 -9 ------- Run | Yrd Mat Sub Rec Peak Influence 152 | . 152 . 19 Initial . | . . . . Average 22 | . 30 . 9 Maximum Alert Level . | . . . . Low Security (%) 100 | 100 100 . 100 Level 1 . | . . . . Level 2 . | . . . . Level 3 . | . . . . Level 4 . | . . . . Level 5 . | . . . . High Security . | . . . . Max Security . | . . . . Squads Dispatched 2 | . 2 . . Investigation . | . . . . Extermination . | . . . . Reinforcement 2 | . 2 . . Assault . | . . . . Garrison . | . . . . Intercept . | . . . . Searches Triggered . | . . . . Construction Impeded . | . . . . Haulers Reinforced . | . . . . Active Scanning Responses . | . . . . Cargo Convoy Interrupts . | . . . . Stealth | -11 -10 -10 -9 --------- Run | Yrd Mat Sub Rec Distress Signals . | . . . . Communications Jammed . | . . . . Distress Signals . | . . . . Times Spotted 28 | . 13 13 2 Peak Tracking Total 5 | . 5 3 2 Tactical Retreats 1 | . . 1 . Traps | -11 -10 -10 -9 ------- Run | Yrd Mat Sub Rec Traps Triggered 4 | . 1 3 . Indirectly . | . . . . Trap Hack Attempts . | . . . . Triggered . | . . . . Disarmed . | . . . . Reprogrammed . | . . . . Reused . | . . . . Traps Extracted . | . . . . Installed . | . . . . Triggered . | . . . . Machines | -11 -10 -10 -9 ---------- Run | Yrd Mat Sub Rec Machines Disabled 4 | . 2 2 . Max in Single Turn 2 | . 2 1 . Machines Repaired . | . . . . Machines Dismantled . | . . . . Machines Sabotaged . | . . . . Overloaded Fab Kills . | . . . . Hacking | -11 -10 -10 -9 --------- Run | Yrd Mat Sub Rec Machines Accessed 6 | . 2 . 4 Terminals 3 | . 1 . 2 Fabricators . | . . . . Repair Stations . | . . . . Recycling Units 3 | . 1 . 2 Scanalyzers . | . . . . Garrison Access . | . . . . Total Hacks 22 | . 11 . 11 Successful 3 | . 1 . 2 Failed 19 | . 10 . 9 Catastrophic 2 | . 1 . 1 Database Lockouts . | . . . . Manual 11 | . 9 . 2 Terminals 7 | . 4 . 3 Fabricators . | . . . . Repair Stations . | . . . . Recycling Units 15 | . 7 . 8 Scanalyzers . | . . . . Garrison Access . | . . . . Terminal Hacks . | . . . . Fabricator Hacks . | . . . . Repair Station Hacks . | . . . . Recycling Unit Hacks 1 | . 1 . . Retrieve Components 1 | . 1 . . Scanalyzer . | . . . . Garrison Access Hacks . | . . . . Unauthorized Hacks 2 | . . . 2 Terminals 2 | . . . 2 Botnet 2 | . . . 2 Fabricators . | . . . . Repair Stations . | . . . . Recycling Units . | . . . . Scanalyzers . | . . . . Garrison Access . | . . . . Data Cores Recovered . | . . . . Used . | . . . . Hacking Detections 5 | . 2 . 3 Full Trace Events 2 | . 1 . 1 Feedback Events . | . . . . Feedback Blocked . | . . . . Robot Schematics Acquired . | . . . . Robots Built . | . . . . Authchips . | . . . . Time . | . . . . Total Robot Build Rating . | . . . . Part Schematics Acquired . | . . . . Parts Built . | . . . . Authchips . | . . . . Time . | . . . . Total Part Build Rating . | . . . . Parts Repaired . | . . . . Time . | . . . . Parts Recycled . | . . . . Recycled Matter . | . . . . Retrieved Matter . | . . . . Retrieved Components 9 | . 9 . . Parts Scanalyzed . | . . . . Part Schematics Acquired . | . . . . Parts Damaged . | . . . . Bothacking | -11 -10 -10 -9 ------------ Run | Yrd Mat Sub Rec Used RIF Installer . | . . . . Robots Hacked . | . . . . Non-combat . | . . . . Combat . | . . . . Robot Hacks Applied . | . . . . Relay Couplers Released . | . . . . Fabnet Peak Effective % . | . . . . Robots Rewired . | . . . . Allies Hacked . | . . . . Hacks Repelled . | . . . . Allies | -11 -10 -10 -9 -------- Run | Yrd Mat Sub Rec Total Allies . | . . . . Largest Group . | . . . . Highest-Rated Group . | . . . . Highest-Rated Ally . | . . . . Total Orders . | . . . . Ally Attacks . | . . . . Total Damage . | . . . . Kills . | . . . . Allies Corrupted . | . . . . Allies Melted . | . . . . Intel | -11 -10 -10 -9 ------- Run | Yrd Mat Sub Rec Robot Analysis Total . | . . . . Derelict Logs Recovered 1 | . . 1 . Drone Launches . | . . . . Drone Recoveries . | . . . . Exploration | -11 -10 -10 -9 ------------- Run | Yrd Mat Sub Rec Turns Passed 2657 | 40 625 1649 343 Spaces Moved 1711 | 38 362 1049 262 Core 1 | 1 . . . Treads . | . . . . Legs . | . . . . Wheels 1710 | 37 362 1049 262 Hover . | . . . . Flight . | . . . . Fastest Speed 50 | 50 80 119 130 Average Speed 131 | 79 134 132 130 Slowest Speed 200 | 80 140 200 130 Overloaded Moves . | . . . . Propulsion Burnouts . | . . . . Robots Hopped . | . . . . Cave-ins Triggered . | . . . . Exploration Rate (%) 44 | 3 55 69 50 Regions Visited 3 Branch Regions 2 Pre-discovered Areas 1 | . . 1 . Known Exits Taken . | . . . . Unknown Exits Taken 3 | 1 1 1 . Scrap Searched 4 | . . 4 . Spaces Dug 2 | . . 2 . Terrain Destroyed 28 | . 15 13 . Melee 2 | . . 2 . Projectile 3 | . . 3 . AOE 23 | . 15 8 . Terrain Rammed . | . . . . Walls Destroyed . | . . . . Machines Disabled . | . . . . Actions | -11 -10 -10 -9 --------- Run | Yrd Mat Sub Rec Total 1962 | 45 446 1207 264 Wait 83 | . 30 53 . Move 1708 | 37 361 1048 262 Hop . | . . . . Pick Up 39 | 3 15 21 . Fast Attach 12 | 5 2 4 1 Attach 4 | . . 4 . Detach . | . . . . Swap 19 | . 7 12 . Drop 18 | . 4 13 1 Fire 73 | . 27 46 . Melee 6 | . . 6 . Ram . | . . . . Kick . | . . . . Crush . | . . . . Escape Stasis . | . . . . Rewire . | . . . . Trap . | . . . . Miscellaneous . | . . . . Route ------- -11/Scrapyard -10/Materials (discovered 3 exits: [*Mat] / [*Min] / [*Sub]) -10/Subcaves (discovered 3 exits: [*Mat x2] / *Rec) -9/Recycling History --------- Turn | Location | Event 10 | -11/Scrapyard | Discovered new exit (range 15) 41 | -11/Scrapyard | Entered Materials 61 | -10/Materials | Discovered new exit (range 16) 309 | -10/Materials | Build established: Mutant 562 | -10/Materials | Discovered new exit (range 7) 645 | -10/Materials | Discovered new exit (range 11) 666 | -10/Materials | Entered Subcaves 677 | -10/Subcaves | Learned location of Zion (-6) 677 | -10/Subcaves | Met a Zionite searching for "candidates" 913 | -10/Subcaves | Discovered new exit (range 9) 1073 | -10/Subcaves | Core integrity fell below 50% 1264 | -10/Subcaves | Discovered new exit (range 10) 1319 | -10/Subcaves | A swath of the cavern ceiling suddenly collapsed 1477 | -10/Subcaves | Shifting Twisted Machinery released Ripper 1491 | -10/Subcaves | Shifting Twisted Machinery released Sub. Monowheel 2035 | -10/Subcaves | Learned Materials terminal intel 2092 | -10/Subcaves | Core integrity fell below 20% 2227 | -10/Subcaves | Discovered new exit (range 15) 2315 | -10/Subcaves | Entered Recycling 2658 | -9/Recycling | Destroyed by Y-45 Defender with Beam Rifle Last Messages --------------- 02474_ Connecting with Terminal... >>Trojan(Botnet) Trojan loaded successfully. Testing... Terminal linked with 0 systems. Awaiting botnet instructions. 02478_ Connecting with Terminal... >>Trojan(Botnet) Trojan loaded successfully. Testing... Terminal linked with 1 system. Awaiting botnet instructions. 02484_ TE9 02499_ System corrupted: Heat flow error (+234). 02550_ VGZBXUU61EP5N|ZKPST/VVUABVBMZH 02621_ Dropped Weapon Shielding. 02622_ Acquired Hrd. Light Armor Plating. 02640_ System corrupted: Energy discharge (-40). 02644_ Y-45 Defender springs to life. 02644_ Battle Cannon destroyed. Map ----- +----------------------------------------------------+ | ??????????????????????????????????????????? | | ??????????????????????????????????????????? | | ??????????????????????????????????????????? | | ??????????????????????????????????????????? | | ??????????????????????????????????????????? | | ??????????????????????????????????????????? | | ???????????????????##??##?????????????????? | | ????????????####### ### #?????????????????? | | ????????????? ??????????????????? | | ????????????? ???????????????????? | | ?????????????? ????????????????????? | | ??????????????? ?????????????????????? | | ???????????????# YY##########?????????????? | | ???????????????# # ! #?????????????? | | ??############## # #?????????????? | | ??# # # #?????????????? | | ??# =% [ # # =! #?????????????? | | ??# # + [ #?????????????? | | ??# [ ! # # = + ??????? | | ??# ! # # !] #####?????????? | | ??# ]=[rr # [ #?????????????? | | ??# ! # # [ #?????????????? | | ??# # ########+#?????????????? | | ??# ! # #??????? #?????????????? | | ??# # #??????? #?????????????? | | ??# ] # @#??????? #?????????????? | | ??# # ######## #?????????????? | | ??############## u #?????????????? | | ???????????????# #?????????????? | | ???????????????# #?????????????? | | ???????????????# #?######??????? | | ??????????????## """r """ #?# #??????? | | ??????????????# """ """ ### #??????? | | ??????????????# """ r""" # #??????? | | ??????????????# + #??????? | | ??????????????# # ##?????? | | ??????????????# # #?????? | | ??#######?????############# # ##?????? | | ??# #?????????????????# # #??????? | | ??# #??##############?# # #??????? | | ??# #??# ! !! ! #?# # #??????? | | ??# """ #??#! ! ! #?# + #??????? | | ??# """ #??#!! ! ! #?# # #??????? | | ??# """ #??#! ! #?# # #??????? | | ??# """ #############+##### #### #??????? | | ??# """ + #???##??????? | | ??# # ######/#######??????? | | ??# """ # # #??????? | | ??# """ + """ """ # #??????? | | ??# """ # """ """ # #??????? | +----------------------------------------------------+ Best States ------------- Heat Dissipation 25 Energy Generation 10 Energy Capacity 125 Matter Stores 300 Matter Capacity 300 Sight Range 16 Terrain Scan Density 10 Armor Coverage 150 Utility Shielding 33 Weapon Shielding 33 Evasion (%) 44 Item Schematics ----------------- None Robot Schematics ------------------ None Fabricated ------------ Nothing Alien Tech Used ----------------- None Achievements -------------- None Challenges ------------ None Game ------ Seed VortexArmageddonScrap Manual? 0 Play Time 00:18:37 Cumulative 99.9 hours Start 2025.03.04 @ 21:38:18 End 2025.03.04 @ 21:56:32 Sessions 1 Manual Loads 0 Difficulty Rogue Special Mode None Game No. 132 Rogue 120 Adventurer 12 Explorer 0 Win Type - Total 1 Types 1/0/0/0/0/0/0/0/0 Lore% 50 Gallery% 55 Achievement% 42 Wizard Run 0 Options --------- Layout 1 ASCII 0 Keyboard 0 Movement Mouse Keybinds 0 Fullscreen 2 Font 24/Terminus Map View 50x35 Zoom Use 0% Tactical HUD 1 Map Filters NONE Filters NONE Steam 1 RUN: 278235a5-a313-4243-9b81-3c4488c80fc8